[Event "Top 12 Féminin 2026"]
[Site "Asnières-sur-Seine, France"]
[Date "2026.05.14"]
[Round "2.13"]
[White "Vega Gutierrez, Sabrina"]
[Black "Krasteva, Beloslava"]
[Result "1-0"]
[TimeControl "1h30 / 40 moves + 30m + 30sec/move"]
[WhiteTitle "IM"]
[BlackTitle "WGM"]
[WhiteFideId "-"]
[BlackFideId "-"]
[WhiteElo "2375"]
[BlackElo "2285"]

1. e4 {[%clk 01:30:56]} {[%emt 00:00:02]} d6 {[%clk 01:30:17]} {[%emt
00:00:43]} 2. d4 {[%clk 01:31:18]} {[%emt 00:00:08]} Nf6 {[%clk 01:30:42]}
{[%emt 00:00:05]} 3. Nc3 {[%clk 01:31:43]} {[%emt 00:00:05]} e5 {[%clk
01:31:03]} {[%emt 00:00:09]} 4. dxe5 {[%clk 01:32:01]} {[%emt 00:00:11]} dxe5
{[%clk 01:31:17]} {[%emt 00:00:17]} 5. Qxd8+ {[%clk 01:32:23]} {[%emt
00:00:08]} Kxd8 {[%clk 01:31:43]} {[%emt 00:00:04]} 6. f4 {[%clk 01:32:45]}
{[%emt 00:00:08]} Bb4 {[%clk 01:30:05]} {[%emt 00:02:08]} 7. Bd2 {[%clk
01:33:05]} {[%emt 00:00:10]} exf4 {[%clk 01:28:24]} {[%emt 00:02:11]} 8. O-O-O
{[%clk 01:32:51]} {[%emt 00:00:43]} Bg4 {[%clk 01:25:53]} {[%emt 00:03:01]} 9.
Be2 {[%clk 01:25:47]} {[%emt 00:07:34]} Nbd7 {[%clk 01:17:12]} {[%emt
00:09:12]} 10. e5 {[%clk 00:51:07]} {[%emt 00:35:09]} Bxc3 {[%clk 00:59:29]}
{[%emt 00:18:13]} 11. Bxc3 {[%clk 00:47:20]} {[%emt 00:04:17]} Bxe2 {[%clk
00:59:49]} {[%emt 00:00:10]} 12. Nxe2 {[%clk 00:47:47]} {[%emt 00:00:04]} Ne4
{[%clk 00:59:32]} {[%emt 00:00:48]} 13. Rd4 {[%clk 00:45:55]} {[%emt 00:02:21]}
Nxc3 {[%clk 00:55:19]} {[%emt 00:04:42]} 14. Nxc3 {[%clk 00:46:18]} {[%emt
00:00:07]} Kc8 {[%clk 00:47:09]} {[%emt 00:08:40]} 15. e6 {[%clk 00:36:14]}
{[%emt 00:10:33]} fxe6 {[%clk 00:47:17]} {[%emt 00:00:22]} 16. Rxf4 {[%clk
00:36:29]} {[%emt 00:00:16]} Nf6 {[%clk 00:46:12]} {[%emt 00:01:35]} 17. g4
{[%clk 00:31:54]} {[%emt 00:05:05]} h6 {[%clk 00:44:41]} {[%emt 00:02:01]} 18.
h4 {[%clk 00:31:26]} {[%emt 00:00:57]} Kd7 {[%clk 00:41:28]} {[%emt 00:03:44]}
19. Rd1+ {[%clk 00:29:03]} {[%emt 00:02:52]} Ke7 {[%clk 00:40:49]} {[%emt
00:01:09]} 20. g5 {[%clk 00:27:28]} {[%emt 00:02:05]} hxg5 {[%clk 00:40:49]}
{[%emt 00:00:31]} 21. hxg5 {[%clk 00:27:51]} {[%emt 00:00:07]} Nd7 {[%clk
00:39:26]} {[%emt 00:01:52]} 22. Nb5 {[%clk 00:20:13]} {[%emt 00:08:09]} Rac8
{[%clk 00:16:20]} {[%emt 00:23:36]} 23. Nxa7 {[%clk 00:02:53]} {[%emt
00:17:49]} Ra8 {[%clk 00:15:59]} {[%emt 00:00:52]} 24. Nb5 {[%clk 00:03:21]}
{[%emt 00:00:02]} Rxa2 {[%clk 00:14:55]} {[%emt 00:01:33]} 25. Kb1 {[%clk
00:03:29]} {[%emt 00:00:22]} Ra5 {[%clk 00:14:33]} {[%emt 00:00:53]} 26. Nxc7
{[%clk 00:02:51]} {[%emt 00:01:08]} Rc5 {[%clk 00:08:09]} {[%emt 00:06:54]} 27.
Rf7+ {[%clk 00:03:04]} {[%emt 00:00:17]} Kxf7 {[%clk 00:08:34]} {[%emt
00:00:05]} 28. Rxd7+ {[%clk 00:03:30]} {[%emt 00:00:03]} Kg6 {[%clk 00:07:45]}
{[%emt 00:01:19]} 29. Nxe6 {[%clk 00:03:27]} {[%emt 00:00:33]} Ra5 {[%clk
00:04:27]} {[%emt 00:03:48]} 30. b3 {[%clk 00:02:47]} {[%emt 00:01:10]} Rg8
{[%clk 00:01:01]} {[%emt 00:03:57]} 31. Rxb7 {[%clk 00:02:14]} {[%emt
00:01:03]} Re5 {[%clk 00:00:59]} {[%emt 00:00:31]} 32. Re7 {[%clk 00:02:15]}
{[%emt 00:00:29]} Ra5 {[%clk 00:00:36]} {[%emt 00:00:54]} 33. b4 {[%clk
00:01:50]} {[%emt 00:00:55]} Ra6 {[%clk 00:00:43]} {[%emt 00:00:23]} 34. Kb2
{[%clk 00:00:56]} {[%emt 00:01:24]} Kf5 {[%clk 00:00:41]} {[%emt 00:00:31]} 35.
Nxg7+ {[%clk 00:00:46]} {[%emt 00:00:40]} Kxg5 {[%clk 00:00:54]} {[%emt
00:00:18]} 36. Ne8 {[%clk 00:01:03]} {[%emt 00:00:13]} Rh8 {[%clk 00:00:35]}
{[%emt 00:00:50]} 37. b5 {[%clk 00:00:58]} {[%emt 00:00:35]} Rb6 {[%clk
00:00:40]} {[%emt 00:00:25]} 38. c4 {[%clk 00:01:08]} {[%emt 00:00:19]} Rb8
{[%clk 00:00:35]} {[%emt 00:00:35]} 39. Nc7 {[%clk 00:00:36]} {[%emt 00:01:03]}
Kf6 {[%clk 00:00:34]} {[%emt 00:00:31]} 40. Nd5+ {[%clk 00:00:57]} {[%emt
00:00:09]} Kf5 {[%clk 00:00:45]} {[%emt 00:00:18]} 41. Kb3 {[%clk 00:01:06]}
{[%emt 00:00:21]} Rh1 {[%clk 00:00:37]} {[%emt 00:00:39]} 42. Kb4 {[%clk
00:21:56]} {[%emt 00:09:40]} Rc8 {[%clk 00:23:35]} {[%emt 00:07:31]} 43. Nc7
{[%clk 00:20:08]} {[%emt 00:02:18]} Kf6 {[%clk 00:19:46]} {[%emt 00:04:19]} 44.
Rd7 {[%clk 00:20:09]} {[%emt 00:00:29]} Ke5 {[%clk 00:16:54]} {[%emt 00:03:22]}
45. Kc5 {[%clk 00:19:41]} {[%emt 00:00:58]} Rb8 {[%clk 00:08:40]} {[%emt
00:08:45]} 46. b6 {[%clk 00:17:34]} {[%emt 00:02:36]} Rc1 {[%clk 00:05:55]}
{[%emt 00:03:16]} 47. Re7 {[%clk 00:17:04]} {[%emt 00:01:00]} Kf5 {[%clk
00:06:10]} {[%emt 00:00:15]} 48. Nd5 {[%clk 00:17:11]} {[%emt 00:00:23]} Rc8+
{[%clk 00:02:15]} {[%emt 00:04:25]} 49. Rc7 {[%clk 00:17:33]} {[%emt 00:00:07]}
Rb8 {[%clk 00:02:41]} {[%emt 00:00:05]} 50. b7 {[%clk 00:15:55]} {[%emt
00:02:07]} Ke4 {[%clk 00:02:26]} {[%emt 00:00:45]} 51. Nb4 {[%clk 00:08:12]}
{[%emt 00:08:13]} Rb1 {[%clk 00:02:22]} {[%emt 00:00:33]} 52. Re7+ {[%clk
00:08:13]} {[%emt 00:00:29]} Kf5 {[%clk 00:02:07]} {[%emt 00:00:46]} 53. Kb5
{[%clk 00:07:47]} {[%emt 00:00:55]} Kf6 {[%clk 00:01:07]} {[%emt 00:01:30]} 54.
Rh7 {[%clk 00:07:12]} {[%emt 00:01:05]} Rg8 {[%clk 00:00:35]} {[%emt 00:01:03]}
55. Rh6+ {[%clk 00:07:09]} {[%emt 00:00:32]} Ke5 {[%clk 00:00:38]} {[%emt
00:00:27]} 56. Kc5 {[%clk 00:06:33]} {[%emt 00:01:06]} Ke4 {[%clk 00:00:36]}
{[%emt 00:00:33]} 57. Re6+ {[%clk 00:06:45]} {[%emt 00:00:18]} Kf3 {[%clk
00:00:35]} {[%emt 00:00:31]} 58. Rb6 {[%clk 00:07:08]} {[%emt 00:00:07]} Rb8
{[%clk 00:00:33]} {[%emt 00:00:32]} 59. Kc6 {[%clk 00:06:59]} {[%emt 00:00:38]}
Rc1 {[%clk 00:00:36]} {[%emt 00:00:28]} 60. c5 {[%clk 00:07:16]} {[%emt
00:00:13]} Ke4 {[%clk 00:00:38]} {[%emt 00:00:28]} 61. Na6 {[%clk 00:07:33]}
{[%emt 00:00:13]} 1-0

[Event "Top 12 Féminin 2026"]
[Site "Asnières-sur-Seine, France"]
[Date "2026.05.14"]
[Round "2.14"]
[White "Leriche, Ines"]
[Black "Haussernot, Cecile"]
[Result "1/2-1/2"]
[TimeControl "1h30 / 40 moves + 30m + 30sec/move"]
[WhiteTitle "-"]
[BlackTitle "WIM"]
[WhiteFideId "-"]
[BlackFideId "-"]
[WhiteElo "1918"]
[BlackElo "2243"]

1. d4 {[%clk 01:30:32]} {[%emt 00:00:28]} Nf6 {[%clk 01:30:52]} {[%emt
00:00:08]} 2. Nf3 {[%clk 01:30:47]} {[%emt 00:00:15]} e6 {[%clk 01:31:09]}
{[%emt 00:00:13]} 3. e3 {[%clk 01:30:46]} {[%emt 00:00:30]} c5 {[%clk
01:24:34]} {[%emt 00:07:05]} 4. Be2 {[%clk 01:17:59]} {[%emt 00:13:17]} b6
{[%clk 01:22:40]} {[%emt 00:02:24]} 5. O-O {[%clk 01:17:45]} {[%emt 00:00:44]}
Bb7 {[%clk 01:23:01]} {[%emt 00:00:11]} 6. b3 {[%clk 01:14:17]} {[%emt
00:03:57]} d6 {[%clk 01:11:08]} {[%emt 00:12:22]} 7. Bb2 {[%clk 01:12:06]}
{[%emt 00:02:40]} Nbd7 {[%clk 01:10:00]} {[%emt 00:01:38]} 8. c4 {[%clk
01:05:04]} {[%emt 00:07:32]} Ne4 {[%clk 01:06:08]} {[%emt 00:04:22]} 9. d5
{[%clk 00:48:55]} {[%emt 00:16:39]} e5 {[%clk 01:01:32]} {[%emt 00:05:06]} 10.
Qc2 {[%clk 00:41:59]} {[%emt 00:07:26]} Nef6 {[%clk 00:47:48]} {[%emt
00:14:15]} 11. Nc3 {[%clk 00:37:16]} {[%emt 00:05:14]} g6 {[%clk 00:44:11]}
{[%emt 00:04:06]} 12. Rae1 {[%clk 00:35:05]} {[%emt 00:02:41]} Bg7 {[%clk
00:40:02]} {[%emt 00:04:39]} 13. Bc1 {[%clk 00:29:10]} {[%emt 00:06:26]} O-O
{[%clk 00:38:18]} {[%emt 00:02:13]} 14. Bd2 {[%clk 00:25:29]} {[%emt 00:04:11]}
Qe7 {[%clk 00:29:29]} {[%emt 00:09:18]} 15. e4 {[%clk 00:24:40]} {[%emt
00:01:19]} Nh5 {[%clk 00:22:47]} {[%emt 00:07:12]} 16. g3 {[%clk 00:23:27]}
{[%emt 00:01:44]} Bc8 {[%clk 00:21:12]} {[%emt 00:02:05]} 17. Qc1 {[%clk
00:20:10]} {[%emt 00:03:47]} Ndf6 {[%clk 00:17:55]} {[%emt 00:03:47]} 18. Nh4
{[%clk 00:18:23]} {[%emt 00:02:17]} Bh3 {[%clk 00:16:06]} {[%emt 00:02:19]} 19.
Ng2 {[%clk 00:18:43]} {[%emt 00:00:10]} Rae8 {[%clk 00:12:53]} {[%emt
00:03:42]} 20. Bh6 {[%clk 00:16:39]} {[%emt 00:02:34]} Qd7 {[%clk 00:10:59]}
{[%emt 00:02:24]} 21. Bxg7 {[%clk 00:08:10]} {[%emt 00:08:59]} Kxg7 {[%clk
00:10:31]} {[%emt 00:00:58]} 22. f3 {[%clk 00:08:30]} {[%emt 00:00:10]} a6
{[%clk 00:09:34]} {[%emt 00:01:27]} 23. Rf2 {[%clk 00:08:39]} {[%emt 00:00:21]}
h6 {[%clk 00:06:32]} {[%emt 00:03:32]} 24. Bf1 {[%clk 00:08:34]} {[%emt
00:00:35]} Nh7 {[%clk 00:06:01]} {[%emt 00:01:00]} 25. Nh4 {[%clk 00:07:03]}
{[%emt 00:02:01]} Bxf1 {[%clk 00:04:43]} {[%emt 00:01:49]} 26. Rexf1 {[%clk
00:07:31]} {[%emt 00:00:02]} Ng5 {[%clk 00:04:35]} {[%emt 00:00:39]} 27. Re2
{[%clk 00:05:48]} {[%emt 00:02:13]} b5 {[%clk 00:04:34]} {[%emt 00:00:31]} 28.
Ng2 {[%clk 00:04:30]} {[%emt 00:01:48]} bxc4 {[%clk 00:03:44]} {[%emt
00:01:21]} 29. bxc4 {[%clk 00:04:15]} {[%emt 00:00:45]} f5 {[%clk 00:01:40]}
{[%emt 00:02:33]} 30. f4 {[%clk 00:01:22]} {[%emt 00:03:22]} exf4 {[%clk
00:01:23]} {[%emt 00:00:48]} 31. gxf4 {[%clk 00:01:17]} {[%emt 00:00:36]} Nxe4
{[%clk 00:01:32]} {[%emt 00:00:20]} 32. Qa1 {[%clk 00:00:32]} {[%emt 00:01:15]}
Nhf6 {[%clk 00:01:11]} {[%emt 00:00:51]} 33. Rfe1 {[%clk 00:00:36]} {[%emt
00:00:26]} Kh7 {[%clk 00:01:32]} {[%emt 00:00:09]} 34. Nh4 {[%clk 00:00:33]}
{[%emt 00:00:33]} g5 {[%clk 00:01:06]} {[%emt 00:00:56]} 35. fxg5 {[%clk
00:00:37]} {[%emt 00:00:26]} hxg5 {[%clk 00:01:05]} {[%emt 00:00:31]} 36. Nf3
{[%clk 00:00:46]} {[%emt 00:00:21]} Nxc3 {[%clk 00:00:38]} {[%emt 00:00:58]} 37.
Qxc3 {[%clk 00:01:12]} {[%emt 00:00:04]} Ne4 {[%clk 00:00:53]} {[%emt
00:00:14]} 38. Rxe4 {[%clk 00:00:44]} {[%emt 00:00:58]} fxe4 {[%clk 00:01:16]}
{[%emt 00:00:07]} 39. Nxg5+ {[%clk 00:01:08]} {[%emt 00:00:06]} Kh6 {[%clk
00:01:08]} {[%emt 00:00:38]} 40. Qg3 {[%clk 00:01:14]} {[%emt 00:00:24]} Qf5
{[%clk 00:00:47]} {[%emt 00:00:50]} 41. Qh4+ {[%clk 00:15:30]} {[%emt
00:16:25]} Kg6 {[%clk 00:26:21]} {[%emt 00:04:57]} 42. Ne6 {[%clk 00:11:31]}
{[%emt 00:04:29]} Rf7 {[%clk 00:16:39]} {[%emt 00:10:11]} 43. Qg3+ {[%clk
00:08:38]} {[%emt 00:03:23]} Kh6 {[%clk 00:16:03]} {[%emt 00:01:06]} 44. Qe3+
{[%clk 00:03:30]} {[%emt 00:05:37]} Kh5 {[%clk 00:14:31]} {[%emt 00:02:02]} 45.
Qe2+ {[%clk 00:03:19]} {[%emt 00:00:42]} Qf3 {[%clk 00:01:41]} {[%emt
00:13:20]} 46. Qxf3+ {[%clk 00:03:10]} {[%emt 00:00:40]} exf3 {[%clk 00:02:09]}
{[%emt 00:00:02]} 47. Nf4+ {[%clk 00:03:18]} {[%emt 00:00:21]} Rxf4 {[%clk
00:02:38]} {[%emt 00:00:02]} 48. Rxe8 {[%clk 00:03:42]} {[%emt 00:00:05]} Rxc4
{[%clk 00:02:47]} {[%emt 00:00:21]} 49. Re6 {[%clk 00:03:02]} {[%emt 00:01:10]}
Rg4+ {[%clk 00:01:20]} {[%emt 00:01:57]} 50. Kf2 {[%clk 00:02:39]} {[%emt
00:00:54]} Rg2+ {[%clk 00:01:02]} {[%emt 00:00:48]} 51. Kxf3 {[%clk 00:03:04]}
{[%emt 00:00:04]} Rxh2 {[%clk 00:01:04]} {[%emt 00:00:28]} 52. Rxd6 {[%clk
00:03:12]} {[%emt 00:00:23]} Rxa2 {[%clk 00:01:28]} {[%emt 00:00:06]} 53. Rc6
{[%clk 00:03:02]} {[%emt 00:00:40]} Kg5 {[%clk 00:01:19]} {[%emt 00:00:39]} 54.
Ke4 {[%clk 00:01:54]} {[%emt 00:01:37]} Re2+ {[%clk 00:00:43]} {[%emt
00:01:07]} 55. Kd3 {[%clk 00:02:06]} {[%emt 00:00:18]} Re8 {[%clk 00:00:40]}
{[%emt 00:00:33]} 56. Rxa6 {[%clk 00:01:06]} {[%emt 00:01:31]} Re1 {[%emt
00:00:39]} 57. Rc6 {[%clk 00:00:36]} {[%emt 00:00:58]} Kf5 {[%clk 00:00:39]}
{[%emt 00:00:23]} 58. Rxc5 {[%clk 00:00:36]} {[%emt 00:00:30]} Ke5 {[%clk
00:01:02]} {[%emt 00:00:07]} 59. Kc4 {[%clk 00:00:37]} {[%emt 00:00:29]} Kd6
{[%clk 00:01:21]} {[%emt 00:00:11]} 60. Rc6+ {[%clk 00:00:50]} {[%emt
00:00:17]} Kd7 {[%clk 00:01:49]} {[%emt 00:00:03]} 61. Rh6 {[%clk 00:00:34]}
{[%emt 00:00:46]} Rc1+ {[%clk 00:02:11]} {[%emt 00:00:08]} 62. Kd4 {[%clk
00:00:31]} {[%emt 00:00:33]} 1/2-1/2

[Event "Top 12 Féminin 2026"]
[Site "Asnières-sur-Seine, France"]
[Date "2026.05.14"]
[Round "2.15"]
[White "Richard, Emma"]
[Black "Carnet, Anaelle"]
[Result "1-0"]
[TimeControl "1h30 / 40 moves + 30m + 30sec/move"]
[WhiteTitle "WFM"]
[BlackTitle "-"]
[WhiteFideId "-"]
[BlackFideId "-"]
[WhiteElo "2106"]
[BlackElo "1786"]

1. e4 {[%clk 01:30:57]} {[%emt 00:00:02]} c6 {[%clk 01:30:56]} {[%emt
00:00:04]} 2. Nf3 {[%clk 01:31:17]} {[%emt 00:00:11]} d5 {[%clk 01:31:17]}
{[%emt 00:00:08]} 3. Nc3 {[%clk 01:31:41]} {[%emt 00:00:05]} dxe4 {[%clk
01:31:40]} {[%emt 00:00:07]} 4. Nxe4 {[%clk 01:32:06]} {[%emt 00:00:05]} Nf6
{[%clk 01:32:06]} {[%emt 00:00:04]} 5. Qe2 {[%clk 01:32:32]} {[%emt 00:00:04]}
Nxe4 {[%clk 01:32:16]} {[%emt 00:00:21]} 6. Qxe4 {[%clk 01:32:55]} {[%emt
00:00:06]} Be6 {[%clk 01:32:27]} {[%emt 00:00:19]} 7. Be2 {[%clk 01:29:11]}
{[%emt 00:04:15]} Nd7 {[%clk 01:30:22]} {[%emt 00:02:34]} 8. c3 {[%clk
01:29:09]} {[%emt 00:00:32]} Nf6 {[%clk 01:28:56]} {[%emt 00:01:56]} 9. Qc2
{[%clk 01:29:35]} {[%emt 00:00:04]} Bg4 {[%clk 01:24:39]} {[%emt 00:04:46]} 10.
d4 {[%clk 01:25:37]} {[%emt 00:04:30]} e6 {[%clk 01:22:27]} {[%emt 00:02:42]}
11. Ne5 {[%clk 01:20:05]} {[%emt 00:06:02]} Bxe2 {[%clk 01:18:43]} {[%emt
00:04:14]} 12. Qxe2 {[%clk 01:20:17]} {[%emt 00:00:17]} Be7 {[%clk 01:19:00]}
{[%emt 00:00:13]} 13. O-O {[%clk 01:19:56]} {[%emt 00:00:52]} O-O {[%clk
01:19:11]} {[%emt 00:00:19]} 14. Rd1 {[%clk 01:19:10]} {[%emt 00:01:16]} Qc7
{[%clk 01:13:33]} {[%emt 00:06:08]} 15. Bf4 {[%clk 01:04:28]} {[%emt 00:15:12]}
Nd5 {[%clk 01:07:42]} {[%emt 00:06:21]} 16. Bg3 {[%clk 01:02:46]} {[%emt
00:02:12]} Qc8 {[%clk 01:00:35]} {[%emt 00:07:37]} 17. c4 {[%clk 00:59:31]}
{[%emt 00:03:45]} Nb6 {[%clk 00:55:02]} {[%emt 00:06:02]} 18. Rac1 {[%clk
00:56:57]} {[%emt 00:03:06]} c5 {[%clk 00:42:28]} {[%emt 00:13:03]} 19. dxc5
{[%clk 00:28:40]} {[%emt 00:28:48]} Qxc5 {[%clk 00:38:39]} {[%emt 00:04:19]} 20.
Nd7 {[%clk 00:24:00]} {[%emt 00:05:10]} Nxd7 {[%clk 00:26:50]} {[%emt
00:12:19]} 21. Rxd7 {[%clk 00:24:25]} {[%emt 00:00:05]} b6 {[%clk 00:26:48]}
{[%emt 00:00:32]} 22. Rcd1 {[%clk 00:22:45]} {[%emt 00:02:10]} Rfd8 {[%clk
00:22:38]} {[%emt 00:04:40]} 23. h4 {[%clk 00:14:41]} {[%emt 00:08:35]} Bf6
{[%clk 00:15:52]} {[%emt 00:07:15]} 24. Qf3 {[%clk 00:09:19]} {[%emt 00:05:53]}
Rac8 {[%clk 00:11:34]} {[%emt 00:04:47]} 25. Rxd8+ {[%clk 00:04:20]} {[%emt
00:05:30]} Bxd8 {[%clk 00:09:53]} {[%emt 00:02:11]} 26. Rd7 {[%clk 00:04:14]}
{[%emt 00:00:36]} Bf6 {[%clk 00:07:10]} {[%emt 00:03:12]} 27. b3 {[%clk
00:04:39]} {[%emt 00:00:05]} Qf8 {[%clk 00:01:09]} {[%emt 00:06:30]} 28. Qb7
{[%clk 00:04:20]} {[%emt 00:00:49]} Qe8 {[%clk 00:00:45]} {[%emt 00:00:54]} 29.
Rxf7 {[%clk 00:03:28]} {[%emt 00:01:22]} Rd8 {[%clk 00:00:41]} {[%emt
00:00:35]} 30. Rc7 {[%clk 00:03:55]} {[%emt 00:00:02]} Qf8 {[%clk 00:00:37]}
{[%emt 00:00:34]} 31. Rd7 {[%clk 00:03:58]} {[%emt 00:00:27]} Rxd7 {[%clk
00:00:40]} {[%emt 00:00:27]} 32. Qxd7 {[%clk 00:04:24]} {[%emt 00:00:05]} e5
{[%clk 00:00:55]} {[%emt 00:00:14]} 33. Qxa7 {[%clk 00:03:49]} {[%emt
00:01:06]} Qd6 {[%clk 00:00:49]} {[%emt 00:00:36]} 34. Qa8+ {[%clk 00:03:32]}
{[%emt 00:00:47]} Kf7 {[%clk 00:00:46]} {[%emt 00:00:32]} 35. Qb7+ {[%clk
00:03:53]} {[%emt 00:00:10]} Kf8 {[%clk 00:00:36]} {[%emt 00:00:39]} 36. Qe4
{[%clk 00:03:15]} {[%emt 00:01:09]} g6 {[%clk 00:00:37]} {[%emt 00:00:29]} 37.
f4 {[%clk 00:01:36]} {[%emt 00:02:08]} Qd1+ {[%clk 00:00:41]} {[%emt 00:00:26]}
38. Kh2 {[%clk 00:02:02]} {[%emt 00:00:05]} Qg4 {[%clk 00:00:47]} {[%emt
00:00:25]} 39. Qa8+ {[%clk 00:02:21]} {[%emt 00:00:11]} Kg7 {[%clk 00:00:44]}
{[%emt 00:00:32]} 40. Qb7+ {[%clk 00:02:26]} {[%emt 00:00:26]} Kh6 {[%clk
00:00:43]} {[%emt 00:00:30]} 41. Qf3 {[%clk 00:23:27]} {[%emt 00:09:29]} Qe6
{[%clk 00:27:34]} {[%emt 00:03:36]} 42. fxe5 {[%clk 00:23:23]} {[%emt
00:00:37]} Bxe5 {[%clk 00:26:49]} {[%emt 00:01:14]} 43. Qe3+ {[%clk 00:23:41]}
{[%emt 00:00:12]} Kg7 {[%clk 00:26:25]} {[%emt 00:00:54]} 44. Qxe5+ {[%clk
00:24:05]} {[%emt 00:00:06]} Qxe5 {[%clk 00:26:44]} {[%emt 00:00:10]} 45. Bxe5+
{[%clk 00:24:30]} {[%emt 00:00:05]} Kf7 {[%clk 00:27:09]} {[%emt 00:00:05]} 46.
Bd4 {[%clk 00:24:46]} {[%emt 00:00:15]} Ke6 {[%clk 00:27:30]} {[%emt 00:00:08]}
47. Bxb6 {[%clk 00:25:11]} {[%emt 00:00:06]} Kd6 {[%clk 00:27:51]} {[%emt
00:00:08]} 48. a4 {[%clk 00:25:33]} {[%emt 00:00:09]} Kc6 {[%clk 00:28:16]}
{[%emt 00:00:05]} 49. a5 {[%clk 00:25:57]} {[%emt 00:00:07]} Kb7 {[%clk
00:28:40]} {[%emt 00:00:05]} 50. b4 {[%clk 00:26:21]} {[%emt 00:00:06]} Kc8
{[%clk 00:29:00]} {[%emt 00:00:10]} 51. a6 {[%clk 00:26:41]} {[%emt 00:00:11]}
Kb8 {[%clk 00:29:18]} {[%emt 00:00:11]} 52. c5 {[%clk 00:26:50]} {[%emt
00:00:22]} h5 {[%clk 00:29:40]} {[%emt 00:00:08]} 53. c6 {[%clk 00:27:13]}
{[%emt 00:00:07]} g5 {[%clk 00:29:58]} {[%emt 00:00:12]} 54. c7+ {[%clk
00:27:39]} {[%emt 00:00:05]} Kc8 {[%clk 00:30:20]} {[%emt 00:00:08]} 55. a7
{[%clk 00:28:03]} {[%emt 00:00:06]} Kd7 {[%clk 00:30:42]} {[%emt 00:00:08]} 56.
c8=Q+ {[%clk 00:28:08]} {[%emt 00:00:25]} Kxc8 {[%clk 00:31:00]} {[%emt
00:00:11]} 57. a8=Q+ {[%clk 00:28:32]} {[%emt 00:00:05]} Kd7 {[%clk 00:31:24]}
{[%emt 00:00:07]} 58. Qd5+ {[%clk 00:28:50]} {[%emt 00:00:12]} Ke7 {[%clk
00:31:45]} {[%emt 00:00:07]} 59. Bd8+ {[%clk 00:29:04]} {[%emt 00:00:18]} Ke8
{[%clk 00:32:02]} {[%emt 00:00:12]} 60. Bf6 {[%clk 00:29:15]} {[%emt 00:00:20]}
Kf8 {[%clk 00:32:21]} {[%emt 00:00:11]} 61. Qe6 {[%clk 00:29:21]} {[%emt
00:00:25]} g4 {[%clk 00:32:44]} {[%emt 00:00:06]} 62. Qe7+ {[%clk 00:29:47]}
{[%emt 00:00:04]} Kg8 {[%clk 00:33:07]} {[%emt 00:00:07]} 63. Qg7# {[%emt
00:00:04]} 1-0